fUST/lending_fUST_20250718
["ID","MTS","AMOUNT","RATE_DAILY","PERIOD"]
[372884524,1752792648044,-216.89230857,0.00017595,2]
[372884525,1752792648055,-462.76349482,0.00017595,2]
[372884526,1752792648064,-460.0,0.00017595,2]
[372884527,1752792648074,-460.0,0.00017595,2]
[372884528,1752792648083,-460.0,0.00017595,2]
[372884529,1752792648093,-460.0,0.00017595,2]
[372884530,1752792648102,-460.0,0.00017595,2]
[372884531,1752792648112,-460.0,0.00017595,2]
[372884532,1752792648121,-467.83,0.00017595,2]
[372884533,1752792648131,-460.0,0.00017595,2]
[372884534,1752792648141,-460.0,0.00017595,2]
[372884535,1752792648152,-460.0,0.00017595,2]
[372884536,1752792648162,-460.0,0.00017595,2]
[372884537,1752792648171,-460.0,0.00017595,2]
[372884538,1752792648181,-460.0,0.00017595,2]
[372884539,1752792648190,-460.0,0.00017595,2]
[372884540,1752792648199,-460.0,0.00017595,2]
[372884541,1752792648209,-577.94,0.00017595,2]
[372884542,1752792648218,-460.0,0.00017595,2]
[372884543,1752792648230,-460.0,0.00017595,2]
[372884544,1752792648239,-460.0,0.00017595,2]
[372884545,1752792648249,-460.0,0.00017595,2]
[372884546,1752792648259,-279.68,0.00017595,2]
[372884547,1752792648271,-460.0,0.00017595,2]
[372884548,1752792648281,-460.0,0.00017595,2]
[372884549,1752792648291,-200.01223836,0.00017595,2]
[372884550,1752792648300,-460.0,0.00017595,2]
[372884551,1752792648310,-460.0,0.00017595,2]
[372884552,1752792648320,-460.0,0.00017595,2]
[372884553,1752792648330,-460.0,0.00017595,2]
[372884554,1752792648340,-460.0,0.00017595,2]
[372884555,1752792648349,-460.0,0.00017595,2]
[372884556,1752792648359,-460.0,0.00017595,2]
[372884557,1752792648368,-463.6047221,0.00017595,2]
[372884558,1752792648378,-460.0,0.00017595,2]
[372884559,1752792648388,-1023.54,0.00017595,2]
[372884560,1752792648397,-460.0,0.00017595,2]
[372884561,1752792648407,-460.0,0.00017595,2]
[372884562,1752792648416,-460.0,0.00017595,2]
[372884563,1752792648426,-460.0,0.00017595,2]
[372884564,1752792648436,-266.96859369,0.00017595,2]
[372884565,1752792648445,-460.0,0.00017595,2]
[372884566,1752792648455,-460.0,0.00017595,2]
[372884567,1752792648467,-239.04363834,0.00017595,2]
[372884568,1752792648478,-460.0,0.00017595,2]
[372884569,1752792648488,-460.0,0.00017595,2]
[372884570,1752792648497,-460.0,0.00017595,2]
[372884571,1752792648507,-416.93170765,0.00017595,2]
[372884572,1752792648519,-460.0,0.00017595,2]
[372884573,1752792648528,-350.09,0.00017595,2]
[372884574,1752792648538,-598.97,0.00017596,2]
[372884575,1752792648550,-460.0,0.00017596,2]
[372884576,1752792648560,-460.0,0.00017596,2]
[372884577,1752792648573,-460.0,0.00017596,2]
[372884578,1752792648583,-615.86615261,0.00017608,2]
[372884579,1752792648694,-564.28236385,0.00017621,2]
[372884580,1752792648705,-947.855061,0.00017621,2]
[372884581,1752792648715,-1000.0,0.00017621,2]
[372884582,1752792648725,-500.0,0.00017621,2]
[372884583,1752792648735,-500.0,0.00017621,2]
[372884584,1752792648745,-445.44958599,0.00017688,2]
[372884585,1752792648755,-10000.0,0.00017733,2]
[372884586,1752792648766,-389.05382547,0.00017748,2]
[372884587,1752792648775,-500.55394877,0.00017748,2]
[372884588,1752792648785,-460.0,0.00017839,2]
[372884589,1752792648801,-460.0,0.00017839,2]
[372884590,1752792648817,-1285.9,0.00017839,2]
[372884591,1752792648827,-3844.7,0.00017839,2]
[372884592,1752792648837,-460.0,0.00017839,2]
[372884593,1752792648846,-460.0,0.00017841,2]
[372884594,1752792648856,-460.0,0.00017841,2]
[372884595,1752792648865,-460.0,0.00017841,2]
[372884596,1752792648875,-256.35568795,0.00017841,2]
[372884597,1752792648884,-460.0,0.00017841,2]
[372884598,1752792648894,-460.0,0.00017842,2]
[372884599,1752792648903,-460.0,0.00017842,2]
[372884600,1752792648913,-460.0,0.00017842,2]
[372884601,1752792648923,-460.0,0.00017842,2]
[372884602,1752792648932,-883.0,0.00017842,2]
[372884603,1752792648942,-2390.87,0.00017842,2]
[372884604,1752792648951,-460.0,0.00017842,2]
[372884605,1752792648961,-2574.35,0.00017842,2]
[372884606,1752792648970,-460.0,0.00017842,2]
[372884607,1752792648980,-460.0,0.00017842,2]
[372884608,1752792648990,-1471.77,0.00017842,2]
[372884609,1752792648999,-460.0,0.00017842,2]
[372884610,1752792649009,-460.0,0.00017864,2]
[372884611,1752792649020,-219.91863093,0.00017865,2]
[372884612,1752792649030,-460.0,0.00017865,2]
[372884613,1752792649039,-460.0,0.00017865,2]
[372884614,1752792649049,-460.0,0.00017865,2]
[372884615,1752792649058,-460.0,0.00017865,2]
[372884616,1752792649069,-460.0,0.00017865,2]
[372884617,1752792649079,-460.0,0.00017865,2]
[372884618,1752792649088,-460.0,0.00017865,2]
[372884619,1752792649098,-460.0,0.00017865,2]
[372884620,1752792649107,-558.89,0.00017865,2]
[372884621,1752792649116,-460.0,0.00017865,2]
[372884622,1752792649126,-460.0,0.00017865,2]
[372884623,1752792649136,-460.0,0.00017865,2]
[372884624,1752792649145,-460.0,0.00017865,2]
[372884625,1752792649155,-509.26,0.00017865,2]
[372884626,1752792649164,-504.22,0.00017865,2]
[372884627,1752792649173,-460.0,0.00017865,2]
[372884628,1752792649183,-553.36,0.00017865,2]
[372884629,1752792649192,-460.0,0.00017865,2]
[372884630,1752792649201,-683.62,0.00017865,2]
[372884631,1752792649211,-460.0,0.00017865,2]
[372884632,1752792649220,-651.31,0.00017865,2]
[372884633,1752792649229,-623.43,0.00017865,2]
[372884634,1752792649239,-1119.9,0.00017865,2]
[372884635,1752792649249,-460.0,0.00017865,2]
[372884636,1752792649258,-620.89,0.00017865,2]
[372884637,1752792649269,-460.0,0.00017865,2]
[372884638,1752792649279,-336.06,0.00017865,2]
[372884639,1752792649288,-460.0,0.00017865,2]
[372884640,1752792649298,-790.48,0.00017865,2]
[372884641,1752792649307,-709.94,0.00017865,2]
[372884642,1752792649317,-460.0,0.00017865,2]
[372884643,1752792649327,-460.0,0.00017865,2]
[372884644,1752792649337,-460.0,0.00017865,2]
[372884645,1752792649346,-460.0,0.00017865,2]
[372884646,1752792649356,-604.38,0.00017865,2]
[372884647,1752792649365,-197.52058712,0.00017866,2]
[372884648,1752792649375,-460.0,0.00017868,2]
[372884649,1752792649384,-460.0,0.00017868,2]
[372884650,1752792649394,-460.0,0.00017868,2]
[372884651,1752792649404,-491.24,0.00017868,2]
[372884652,1752792649414,-614.19,0.00017868,2]
[372884653,1752792649423,-460.0,0.00017868,2]
[372884654,1752792649433,-4940.94,0.00017868,2]
[372884655,1752792649443,-557.14,0.00017868,2]
[372884656,1752792649452,-853.37,0.00017868,2]
[372884657,1752792649462,-460.0,0.00017868,2]
[372884658,1752792649474,-460.0,0.00017868,2]
[372884659,1752792649484,-460.0,0.00017868,2]
[372884660,1752792649494,-546.72,0.00017868,2]
[372884661,1752792649504,-460.0,0.00017868,2]
[372884662,1752792649516,-1501.50161883,0.00017868,2]
[372884663,1752792649526,-901.05663277,0.00017868,2]
[372884664,1752792649536,-1000.0,0.00017868,2]
[372884665,1752792649546,-1500.0,0.00017868,2]
[372884666,1752792649556,-1500.0,0.00017868,2]
[372884667,1752792649565,-1500.0,0.00017868,2]
[372884668,1752792649574,-460.0,0.00017869,2]
[372884669,1752792649583,-460.0,0.00017869,2]
[372884670,1752792649592,-460.0,0.00017869,2]
[372884671,1752792649600,-405.85128992,0.00017869,2]
[372884672,1752792649609,-460.0,0.00017869,2]
[372884673,1752792649618,-460.0,0.00017869,2]
[372884674,1752792649627,-460.0,0.00017869,2]
[372884675,1752792649636,-460.0,0.00017869,2]
[372884676,1752792649644,-460.0,0.00017869,2]
[372884677,1752792649653,-460.0,0.00017869,2]
[372884678,1752792649662,-467.83,0.00017869,2]
[372884679,1752792649670,-460.0,0.00017869,2]
[372884680,1752792649679,-460.0,0.00017869,2]
[372884681,1752792649687,-460.0,0.00017869,2]
[372884682,1752792649695,-180.01716256,0.00017869,2]
[372884683,1752792649708,-460.0,0.00017869,2]
[372884684,1752792649716,-460.0,0.00017869,2]
[372884685,1752792649725,-460.0,0.00017869,2]
[372884686,1752792649734,-577.94,0.00017869,2]
[372884687,1752792649743,-460.0,0.00017869,2]
[372884688,1752792649751,-460.0,0.00017869,2]
[372884689,1752792649760,-460.0,0.00017869,2]
[372884690,1752792649781,-460.0,0.00017869,2]
[372884691,1752792649796,-460.0,0.00017869,2]
[372884692,1752792649806,-460.0,0.00017869,2]
[372884693,1752792649815,-460.0,0.00017869,2]
[372884694,1752792649825,-460.0,0.00017869,2]
[372884695,1752792649835,-460.0,0.00017869,2]
[372884696,1752792649844,-460.0,0.00017869,2]
[372884697,1752792649853,-460.0,0.00017869,2]
[372884698,1752792649863,-460.0,0.00017869,2]
[372884699,1752792649873,-1023.54,0.00017869,2]
[372884700,1752792649882,-460.0,0.00017869,2]
[372884701,1752792649892,-460.0,0.00017869,2]
[372884702,1752792649901,-460.0,0.00017869,2]
[372884703,1752792649910,-460.0,0.00017869,2]
[372884704,1752792649919,-460.0,0.00017869,2]
[372884705,1752792649929,-460.0,0.00017869,2]
[372884706,1752792649938,-460.0,0.00017869,2]
[372884707,1752792649947,-460.0,0.00017869,2]
[372884708,1752792649957,-460.0,0.00017869,2]
[372884709,1752792649966,-460.0,0.00017869,2]
[372884710,1752792649975,-460.0,0.0001787,2]
[372884711,1752792649985,-460.0,0.0001787,2]
[372884712,1752792649994,-250.18123244,0.00017921,2]
[372884713,1752792650003,-500.0,0.00017921,2]
[372884714,1752792650012,-1000.0,0.00017921,2]
[372884715,1752792650025,-1000.0,0.00017921,2]
[372884716,1752792650034,-1000.0,0.00017921,2]
[372884717,1752792650044,-1000.0,0.00017921,2]
[372884718,1752792650053,-1000.0,0.00017921,2]
[372884719,1752792650062,-585.0441841,0.00017921,2]
[372884720,1752792650071,-450.0,0.00017921,2]
[372884721,1752792650081,-2066.47584786,0.00017974,2]
[372884722,1752792650090,-160.0,0.00017992,2]
[372884723,1752792650099,-160.0,0.00017996,2]
[372884724,1752792650108,-476.16111942,0.00017996,2]
[372884725,1752792650118,-160.0,0.00017996,2]
[372884726,1752792650128,-160.0,0.00017996,2]
[372884727,1752792650137,-160.0,0.00017996,2]
[372884728,1752792650147,-214.44804168,0.00017996,2]
[372884729,1752792650156,-839.15451687,0.00017996,2]
[372884730,1752792650166,-160.0,0.00017996,2]
[372884731,1752792650175,-215.59244943,0.00017996,2]
[372884732,1752792650184,-160.0,0.00017996,2]
[372884733,1752792650194,-160.0,0.00017996,2]
[372884734,1752792650203,-230.85589339,0.00017996,2]
[372884735,1752792650212,-525.67742785,0.00017996,2]
[372884736,1752792650222,-12607.95677342,0.00017996,2]
[372884737,1752792650231,-160.0,0.00017996,2]
[372884738,1752792650241,-420.0,0.00017999,2]
[372884739,1752792650251,-151.0,0.00018,2]
[372884740,1752792650261,-460.0,0.00018113,2]
[372884741,1752792650273,-460.0,0.00018113,2]
[372884742,1752792650282,-1285.9,0.00018113,2]
[372884743,1752792650292,-3844.7,0.00018113,2]
[372884744,1752792650302,-523.80957865,0.00018113,2]
[372884745,1752792650312,-465.57,0.00018115,2]
[372884746,1752792650322,-460.0,0.00018115,2]
[372884747,1752792650331,-460.0,0.00018115,2]
[372884748,1752792650340,-465.61338711,0.00018115,2]
[372884749,1752792650350,-460.0,0.00018116,2]
[372884750,1752792650359,-460.0,0.00018116,2]
[372884751,1752792650369,-460.0,0.00018116,2]
[372884752,1752792650378,-883.0,0.00018116,2]
[372884753,1752792650388,-2390.87,0.00018116,2]
[372884754,1752792650398,-460.0,0.00018116,2]
[372884755,1752792650407,-2574.35,0.00018116,2]
[372884756,1752792650416,-460.0,0.00018116,2]
[372884757,1752792650426,-460.0,0.00018116,2]
[372884758,1752792650436,-1471.77,0.00018116,2]
[372884759,1752792650446,-460.0,0.00018116,2]
[372884760,1752792650455,-2000.0,0.00018116,2]
[372884761,1752792650466,-297.45462002,0.00018116,2]
[372884762,1752792650479,-460.0,0.00018138,2]
[372884763,1752792650489,-460.0,0.00018139,2]
[372884764,1752792650499,-460.0,0.00018139,2]
[372884765,1752792650509,-460.0,0.00018139,2]
[372884766,1752792650520,-460.0,0.00018139,2]
[372884767,1752792650529,-460.0,0.00018139,2]
[372884768,1752792650539,-151.0,0.00018139,2]
[372884769,1752792650549,-460.0,0.00018139,2]
[372884770,1752792650558,-460.0,0.00018139,2]
[372884771,1752792650568,-558.89,0.00018139,2]
[372884772,1752792650577,-460.0,0.00018139,2]
[372884773,1752792650587,-151.0,0.00018139,2]
[372884774,1752792650596,-460.0,0.00018139,2]
[372884775,1752792650606,-509.26,0.00018139,2]
[372884776,1752792650615,-504.22,0.00018139,2]
[372884777,1752792650625,-460.0,0.00018139,2]
[372884778,1752792650635,-553.36,0.00018139,2]
[372884779,1752792650645,-151.0,0.00018139,2]
[372884780,1752792650655,-460.0,0.00018139,2]
[372884781,1752792650664,-683.62,0.00018139,2]
[372884782,1752792650673,-460.0,0.00018139,2]
[372884783,1752792650683,-651.31,0.00018139,2]
[372884784,1752792650692,-623.43,0.00018139,2]
[372884785,1752792650702,-1119.9,0.00018139,2]
[372884786,1752792650711,-460.0,0.00018139,2]
[372884787,1752792650721,-620.89,0.00018139,2]
[372884788,1752792650730,-460.0,0.00018139,2]
[372884789,1752792650739,-790.48,0.00018139,2]
[372884790,1752792650749,-709.94,0.00018139,2]
[372884791,1752792650758,-151.0,0.00018139,2]
[372884792,1752792650769,-151.0,0.00018139,2]
[372884793,1752792650778,-460.0,0.00018139,2]
[372884794,1752792650788,-460.0,0.00018139,2]
[372884795,1752792650798,-460.0,0.00018139,2]
[372884796,1752792650807,-604.38,0.00018139,2]
[372884797,1752792650817,-460.0,0.00018142,2]
[372884798,1752792650826,-460.0,0.00018142,2]
[372884799,1752792650835,-460.0,0.00018142,2]
[372884800,1752792650845,-491.24,0.00018142,2]
[372884801,1752792650854,-614.19,0.00018142,2]
[372884802,1752792650952,-460.0,0.00018142,2]
[372884803,1752792650962,-4940.94,0.00018142,2]
[372884804,1752792650972,-557.14,0.00018142,2]
[372884805,1752792650982,-853.37,0.00018142,2]
[372884806,1752792650991,-460.0,0.00018142,2]
[372884807,1752792651000,-460.0,0.00018142,2]
[372884808,1752792651010,-460.0,0.00018142,2]
[372884809,1752792651022,-546.72,0.00018142,2]
[372884810,1752792651031,-460.0,0.00018143,2]
[372884811,1752792651041,-460.0,0.00018143,2]
[372884812,1752792651050,-460.0,0.00018143,2]
[372884813,1752792651059,-460.0,0.00018143,2]
[372884814,1752792651069,-460.0,0.00018143,2]
[372884815,1752792651078,-460.0,0.00018143,2]
[372884816,1752792651088,-460.0,0.00018143,2]
[372884817,1752792651098,-460.0,0.00018143,2]
[372884818,1752792651107,-460.0,0.00018143,2]
[372884819,1752792651117,-467.83,0.00018143,2]
[372884820,1752792651127,-460.0,0.00018143,2]
[372884821,1752792651136,-460.0,0.00018143,2]
[372884822,1752792651145,-460.0,0.00018143,2]
[372884823,1752792651154,-460.0,0.00018143,2]
[372884824,1752792651164,-460.0,0.00018143,2]
[372884825,1752792651174,-460.0,0.00018143,2]
[372884826,1752792651183,-577.94,0.00018143,2]
[372884827,1752792651193,-460.0,0.00018143,2]
[372884828,1752792651202,-294.57498993,0.00018143,2]
[372884829,1752792651211,-460.0,0.00018143,2]
[372884830,1752792651221,-460.0,0.00018143,2]
[372884831,1752792651230,-460.0,0.00018143,2]
[372884832,1752792651242,-460.0,0.00018143,2]
[372884833,1752792651251,-460.0,0.00018143,2]
[372884834,1752792651261,-460.0,0.00018143,2]
[372884835,1752792651272,-460.0,0.00018143,2]
[372884836,1752792651282,-460.0,0.00018143,2]
[372884837,1752792651291,-1023.54,0.00018143,2]
[372884838,1752792651301,-460.0,0.00018143,2]
[372884839,1752792651310,-460.0,0.00018143,2]
[372884840,1752792651320,-460.0,0.00018143,2]
[372884841,1752792651330,-460.0,0.00018143,2]
[372884842,1752792651340,-464.86063796,0.00018143,2]
[372884843,1752792651349,-460.0,0.00018143,2]
[372884844,1752792651359,-460.0,0.00018143,2]
[372884845,1752792651370,-460.0,0.00018143,2]
[372884846,1752792651380,-460.0,0.00018144,2]
[372884847,1752792651390,-150.0,0.00018353,2]
[372884848,1752792651400,-460.0,0.00018387,2]
[372884849,1752792651410,-460.0,0.00018387,2]
[372884850,1752792651420,-1285.9,0.00018387,2]
[372884851,1752792651430,-3844.7,0.00018387,2]
[372884852,1752792651439,-460.0,0.00018389,2]
[372884853,1752792651449,-460.0,0.00018389,2]
[372884854,1752792651461,-460.0,0.0001839,2]
[372884855,1752792651472,-460.0,0.0001839,2]
[372884856,1752792651488,-883.0,0.0001839,2]
[372884857,1752792651507,-2390.87,0.0001839,2]
[372884858,1752792651518,-460.0,0.0001839,2]
[372884859,1752792651527,-2574.35,0.0001839,2]
[372884860,1752792651537,-460.0,0.0001839,2]
[372884861,1752792651548,-460.0,0.0001839,2]
[372884862,1752792651558,-1471.77,0.0001839,2]
[372884863,1752792651568,-460.0,0.00018412,2]
[372884864,1752792651578,-460.0,0.00018413,2]
[372884865,1752792651588,-460.0,0.00018413,2]
[372884866,1752792651597,-460.0,0.00018413,2]
[372884867,1752792651607,-460.0,0.00018413,2]
[372884868,1752792651617,-460.0,0.00018413,2]
[372884869,1752792651627,-460.0,0.00018413,2]
[372884870,1752792651637,-460.0,0.00018413,2]
[372884871,1752792651646,-558.89,0.00018413,2]
[372884872,1752792651656,-460.0,0.00018413,2]
[372884873,1752792651666,-509.26,0.00018413,2]
[372884874,1752792651675,-504.22,0.00018413,2]
[372884875,1752792651684,-460.0,0.00018413,2]
[372884876,1752792651694,-553.36,0.00018413,2]
[372884877,1752792651703,-460.0,0.00018413,2]
[372884878,1752792651713,-683.62,0.00018413,2]
[372884879,1752792651722,-460.0,0.00018413,2]
[372884880,1752792651731,-651.31,0.00018413,2]
[372884881,1752792651741,-623.43,0.00018413,2]
[372884882,1752792651750,-1119.9,0.00018413,2]
[372884883,1752792651759,-620.89,0.00018413,2]
[372884884,1752792651769,-460.0,0.00018413,2]
[372884885,1752792651779,-790.48,0.00018413,2]
[372884886,1752792651788,-709.94,0.00018413,2]
[372884887,1752792651798,-508.69,0.00018413,2]
[372884888,1752792651807,-460.0,0.00018413,2]
[372884889,1752792651817,-604.38,0.00018413,2]
[372884890,1752792651827,-460.0,0.00018416,2]
[372884891,1752792651836,-460.0,0.00018416,2]
[372884892,1752792651846,-491.24,0.00018416,2]
[372884893,1752792651855,-614.19,0.00018416,2]
[372884894,1752792651865,-4940.94,0.00018416,2]
[372884895,1752792651875,-557.14,0.00018416,2]
[372884896,1752792651884,-853.37,0.00018416,2]
[372884897,1752792651894,-460.0,0.00018416,2]
[372884898,1752792651904,-460.0,0.00018416,2]
[372884899,1752792651913,-460.0,0.00018416,2]
[372884900,1752792651923,-546.72,0.00018416,2]
[372884901,1752792651932,-2000.0,0.00018416,2]
[372884902,1752792651943,-2034.06014584,0.00018416,2]
[372884903,1752792651952,-2000.0,0.00018416,2]
[372884904,1752792651962,-521.09,0.00018417,2]
[372884905,1752792651972,-460.0,0.00018417,2]
[372884906,1752792651981,-460.0,0.00018417,2]
[372884907,1752792651991,-460.0,0.00018417,2]
[372884908,1752792652001,-460.0,0.00018417,2]
[372884909,1752792652010,-460.0,0.00018417,2]
[372884910,1752792652020,-460.0,0.00018417,2]
[372884911,1752792652030,-467.83,0.00018417,2]
[372884912,1752792652039,-460.0,0.00018417,2]
[372884913,1752792652049,-460.0,0.00018417,2]
[372884914,1752792652058,-460.0,0.00018417,2]
[372884915,1752792652068,-460.0,0.00018417,2]
[372884916,1752792652077,-460.0,0.00018417,2]
[372884917,1752792652087,-577.94,0.00018417,2]
[372884918,1752792652096,-460.0,0.00018417,2]
[372884919,1752792652106,-460.0,0.00018417,2]
[372884920,1752792652116,-460.0,0.00018417,2]
[372884921,1752792652126,-460.0,0.00018417,2]
[372884922,1752792652135,-460.0,0.00018417,2]
[372884923,1752792652145,-460.0,0.00018417,2]
[372884924,1752792652155,-460.0,0.00018417,2]
[372884925,1752792652164,-460.0,0.00018417,2]
[372884926,1752792652174,-460.0,0.00018417,2]
[372884927,1752792652183,-1023.54,0.00018417,2]
[372884928,1752792652193,-460.0,0.00018417,2]
[372884929,1752792652203,-460.0,0.00018417,2]
[372884930,1752792652212,-460.0,0.00018417,2]
[372884931,1752792652222,-460.0,0.00018417,2]
[372884932,1752792652232,-460.0,0.00018417,2]
[372884933,1752792652241,-440.4016656,0.00018418,2]
[372884934,1752792652251,-332.056736,0.00018418,2]
[372884935,1752792652261,-332.056736,0.00018418,2]
[372884936,1752792652270,-500.0,0.00018466,2]
[372884937,1752792652280,-1000.0,0.00018468,2]
[372884938,1752792652289,-500.0,0.00018468,2]
[372884939,1752792652299,-1500.0,0.00018468,2]
[372884940,1752792652308,-1500.0,0.00018468,2]
[372884941,1752792652318,-901.42791799,0.00018468,2]
[372884942,1752792652329,-460.0,0.00018661,2]
[372884943,1752792652338,-460.0,0.00018661,2]
[372884944,1752792652348,-1285.9,0.00018661,2]
[372884945,1752792652358,-3844.7,0.00018661,2]
[372884946,1752792652368,-460.0,0.00018663,2]
[372884947,1752792652379,-460.0,0.00018664,2]
[372884948,1752792652388,-460.0,0.00018664,2]
[372884949,1752792652398,-883.0,0.00018664,2]
[372884950,1752792652408,-2390.87,0.00018664,2]
[372884951,1752792652417,-460.0,0.00018664,2]
[372884952,1752792652427,-2574.35,0.00018664,2]
[372884953,1752792652437,-460.0,0.00018664,2]
[372884954,1752792652447,-460.0,0.00018664,2]
[372884955,1752792652457,-1471.77,0.00018664,2]
[372884956,1752792652473,-2500.0,0.00018664,2]
[372884957,1752792652483,-460.0,0.00018686,2]
[372884958,1752792652493,-460.0,0.00018687,2]
[372884959,1752792652503,-460.0,0.00018687,2]
[372884960,1752792652514,-460.0,0.00018687,2]
[372884961,1752792652525,-460.0,0.00018687,2]
[372884962,1752792652536,-460.0,0.00018687,2]
[372884963,1752792652546,-558.89,0.00018687,2]
[372884964,1752792652556,-460.0,0.00018687,2]
[372884965,1752792652565,-509.26,0.00018687,2]
[372884966,1752792652575,-504.22,0.00018687,2]
[372884967,1752792652585,-553.36,0.00018687,2]
[372884968,1752792652594,-460.0,0.00018687,2]
[372884969,1752792652604,-683.62,0.00018687,2]
[372884970,1752792652612,-460.0,0.00018687,2]
[372884971,1752792652622,-651.31,0.00018687,2]
[372884972,1752792652631,-623.43,0.00018687,2]
[372884973,1752792652642,-1119.9,0.00018687,2]
[372884974,1752792652651,-620.89,0.00018687,2]
[372884975,1752792652660,-460.0,0.00018687,2]
[372884976,1752792652670,-790.48,0.00018687,2]
[372884977,1752792652679,-709.94,0.00018687,2]
[372884978,1752792652688,-151.0,0.00018687,2]
[372884979,1752792652697,-151.0,0.00018687,2]
[372884980,1752792652706,-460.0,0.00018687,2]
[372884981,1752792652715,-604.38,0.00018687,2]
[372884982,1752792652725,-460.0,0.0001869,2]
[372884983,1752792652735,-460.0,0.0001869,2]
[372884984,1752792652744,-491.24,0.0001869,2]
[372884985,1752792652753,-614.19,0.0001869,2]
[372884986,1752792652762,-4940.94,0.0001869,2]
[372884987,1752792652775,-557.14,0.0001869,2]
[372884988,1752792652784,-853.37,0.0001869,2]
[372884989,1752792652793,-460.0,0.0001869,2]
[372884990,1752792652803,-460.0,0.0001869,2]
[372884991,1752792652813,-460.0,0.0001869,2]
[372884992,1752792652823,-546.72,0.0001869,2]
[372884993,1752792652832,-460.0,0.00018691,2]
[372884994,1752792652842,-460.0,0.00018691,2]
[372884995,1752792652852,-460.0,0.00018691,2]
[372884996,1752792652861,-460.0,0.00018691,2]
[372884997,1752792652871,-460.0,0.00018691,2]
[372884998,1752792652881,-467.83,0.00018691,2]
[372884999,1752792652892,-460.0,0.00018691,2]
[372885000,1752792652903,-460.0,0.00018691,2]
[372885001,1752792652913,-460.0,0.00018691,2]
[372885002,1752792652924,-460.0,0.00018691,2]
[372885003,1752792652933,-460.0,0.00018691,2]
[372885004,1752792652942,-577.94,0.00018691,2]
[372885005,1752792652951,-460.0,0.00018691,2]
[372885006,1752792652961,-460.0,0.00018691,2]
[372885007,1752792653059,-460.0,0.00018691,2]
[372885008,1752792653069,-460.0,0.00018691,2]
[372885009,1752792653078,-460.0,0.00018691,2]
[372885010,1752792653088,-460.0,0.00018691,2]
[372885011,1752792653097,-460.0,0.00018691,2]
[372885012,1752792653107,-460.0,0.00018691,2]
[372885013,1752792653116,-1023.54,0.00018691,2]
[372885014,1752792653126,-460.0,0.00018691,2]
[372885015,1752792653135,-460.0,0.00018691,2]
[372885016,1752792653145,-460.0,0.00018691,2]
[372885017,1752792653154,-460.0,0.00018691,2]
[372885018,1752792653164,-460.0,0.00018691,2]
[372885019,1752792653174,-151.0,0.00018868,2]
[372885020,1752792653183,-151.0,0.00018868,2]
[372885021,1752792653193,-150.0,0.000189,2]
[372885022,1752792653202,-302.8788636,0.000189,2]
[372885023,1752792653212,-460.0,0.00018935,2]